bitfinex-derivatives/quotes_BTCF0:USTF0_20251206
["timestamp","ask_amount","ask_price","bid_price","bid_amount"]
[1765038541819,0.001,89904.0,89903.0,1.03087053]
[1765038542023,0.001,89904.0,89903.0,1.39167053]
[1765038542324,0.05697,89920.0,89919.0,0.05903]
[1765038543224,0.05697,89920.0,89919.0,0.43903]
[1765038544220,0.05897,89920.0,89919.0,0.44003]
[1765038545220,0.05697,89920.0,89919.0,0.43903]
[1765038545526,0.05797,89920.0,89919.0,0.43903]
[1765038546827,0.05697,89920.0,89919.0,0.43903]
[1765038547017,0.05797,89920.0,89919.0,0.43903]
[1765038549225,0.05797,89920.0,89919.0,0.10903]
[1765038553629,0.05797,89920.0,89919.0,0.1201501]
[1765038553819,0.05797,89920.0,89919.0,0.3301501]
[1765038557232,0.02821,89920.0,89919.0,0.3457201]
[1765038557930,0.02821,89920.0,89919.0,0.3467201]
[1765038558131,0.01647,89940.0,89931.0,0.0111185]
[1765038558330,0.41777,89936.0,89935.0,0.05903]
[1765038559628,0.41977,89936.0,89935.0,0.06003]
[1765038563533,0.41977,89936.0,89935.0,0.03077]
[1765038563745,0.41977,89936.0,89935.0,0.06003]
[1765038565343,0.05897,89936.0,89935.0,0.03077]
[1765038565640,0.05897,89936.0,89935.0,0.001]
[1765038567247,0.084559,89928.0,89927.0,0.00016681]
[1765038567440,0.445359,89928.0,89927.0,0.00016681]
[1765038568447,0.446359,89928.0,89927.0,0.00316681]
[1765038569149,0.446359,89928.0,89927.0,0.06319681]
[1765038569448,0.445359,89928.0,89927.0,0.06019681]
[1765038569641,0.446359,89928.0,89927.0,0.06019681]
[1765038569841,0.446359,89928.0,89927.0,0.05919681]
[1765038572658,0.085559,89928.0,89927.0,0.05919681]
[1765038574554,0.086559,89928.0,89927.0,0.05919681]
[1765038575057,0.084559,89928.0,89927.0,0.05919681]
[1765038575256,0.086559,89928.0,89927.0,0.05919681]
[1765038582563,0.086559,89928.0,89927.0,0.00016681]
[1765038585768,0.086559,89928.0,89927.0,0.02897681]
[1765038586770,0.086559,89928.0,89927.0,0.00016681]
[1765038587770,0.086559,89928.0,89927.0,0.02897681]
[1765038589674,0.086559,89928.0,89927.0,0.00016681]
[1765038589869,0.086559,89928.0,89927.0,0.02897681]
[1765038590873,0.086559,89928.0,89927.0,0.00016681]
[1765038596575,0.086559,89928.0,89927.0,0.02785681]
[1765038598181,0.086559,89928.0,89927.0,0.05672681]
[1765038604084,0.086559,89928.0,89927.0,0.02785681]
[1765038605085,0.086559,89928.0,89927.0,0.05720681]
[1765038605380,0.07544,89928.0,89927.0,0.05720681]
[1765038613787,0.05897,89928.0,89927.0,0.05720681]
[1765038614793,0.07524,89928.0,89927.0,0.05720681]
[1765038616794,0.05897,89928.0,89927.0,0.05720681]
[1765038617093,0.07524,89928.0,89927.0,0.05720681]
[1765038620688,0.07324,89928.0,89927.0,0.05720681]
[1765038620887,0.07424,89928.0,89927.0,0.05720681]
[1765038621087,0.07424,89928.0,89927.0,0.00016681]
[1765038621302,0.07324,89928.0,89927.0,0.00016681]
[1765038621486,0.07524,89928.0,89927.0,0.00016681]
[1765038621995,0.05709,89911.0,89910.0,0.24211535]
[1765038622197,0.05709,89911.0,89910.0,0.05656]
[1765038624200,0.05809,89911.0,89910.0,0.05956]
[1765038624699,0.05809,89911.0,89910.0,0.06056]
[1765038631605,0.05809,89911.0,89910.0,0.004]
[1765038631804,0.07514,89904.0,89903.0,0.01474]
[1765038632105,0.07514,89904.0,89903.0,0.00420241]
[1765038632304,0.43594,89904.0,89903.0,0.00420241]
[1765038632896,0.43594,89904.0,89903.0,0.00620241]
[1765038633708,0.43694,89904.0,89903.0,0.00720241]
[1765038635499,0.43694,89904.0,89892.0,0.0001155]
[1765038635500,0.0693134,89893.0,89892.0,0.0001155]
[1765038635701,0.4301134,89893.0,89892.0,0.0001155]
[1765038636909,0.4311134,89893.0,89892.0,0.0001155]
[1765038637212,0.4311134,89893.0,89892.0,0.0021155]
[1765038637816,0.0693141,89887.0,89886.0,0.00027813]
[1765038638709,0.06939587,89887.0,89886.0,0.00027813]
[1765038638920,0.06939587,89887.0,89886.0,0.05814813]
[1765038639618,0.06939587,89887.0,89886.0,0.05614813]
[1765038639912,0.07039587,89887.0,89886.0,0.05714813]
[1765038640321,0.06939587,89887.0,89886.0,0.05714813]
[1765038640618,0.07039587,89887.0,89886.0,0.05714813]
[1765038644128,0.05927177,89887.0,89886.0,0.05714813]
[1765038646828,0.05927177,89887.0,89886.0,0.06827233]
[1765038649029,0.05927177,89887.0,89886.0,0.05714813]
[1765038654329,0.05927177,89887.0,89886.0,0.00127813]
[1765038661835,0.05855,89861.0,89860.0,0.05865]
[1765038662034,0.05866385,89861.0,89860.0,0.05865]
[1765038662242,0.05866385,89861.0,89860.0,0.06992859]
[1765038663137,0.05966385,89861.0,89860.0,0.43072859]
[1765038664041,0.05966385,89861.0,89860.0,0.43172859]
[1765038668837,0.05966385,89861.0,89860.0,0.001]
[1765038669336,0.05966385,89861.0,89860.0,0.05965]
[1765038671146,0.05866385,89861.0,89860.0,0.05965]
[1765038671445,0.05966385,89861.0,89860.0,0.05965]
[1765038671746,0.05966385,89861.0,89860.0,0.001]
[1765038673749,0.05966385,89861.0,89860.0,0.02979]
[1765038676044,0.05966385,89861.0,89860.0,0.05965]
[1765038676246,0.05966385,89861.0,89860.0,0.02979]
[1765038676447,0.05855,89836.0,89835.0,0.05877256]
[1765038676751,0.0001155,89836.0,89835.0,0.14877256]
[1765038677046,0.0292255,89836.0,89835.0,0.05877256]
[1765038677242,0.0586655,89836.0,89835.0,0.06987617]
[1765038678053,0.0596655,89836.0,89835.0,0.06987617]
[1765038678652,0.0596655,89836.0,89835.0,0.08100667]
[1765038679150,0.0596655,89836.0,89835.0,0.43067617]
[1765038681849,0.0707959,89836.0,89835.0,0.43067617]
[1765038682050,0.0707959,89836.0,89835.0,0.06987617]
[1765038684853,0.0872059,89836.0,89835.0,0.06987617]
[1765038691962,0.0707959,89836.0,89835.0,0.06987617]
[1765038695365,0.0879259,89836.0,89835.0,0.06987617]
[1765038696463,0.0596655,89836.0,89835.0,0.08100667]
[1765038696657,0.0011155,89836.0,89835.0,0.20100667]
[1765038697057,0.0011155,89836.0,89835.0,0.46100667]
[1765038697659,0.0011155,89836.0,89835.0,0.19100667]
[1765038697860,0.0283355,89836.0,89835.0,0.19100667]
[1765038698060,0.0011155,89836.0,89835.0,0.19100667]
[1765038699362,0.0011155,89836.0,89835.0,0.08100667]
[1765038699568,0.0011155,89836.0,89835.0,0.50100667]
[1765038700469,0.0011155,89836.0,89835.0,0.08100667]
[1765038700669,0.0011155,89836.0,89835.0,0.44100667]
[1765038701360,0.00016693,89844.0,89843.0,0.0672596]
[1765038701567,0.00016693,89844.0,89843.0,0.4280596]
[1765038703070,0.00116693,89844.0,89843.0,0.4280596]
[1765038705172,0.05482,89858.0,89854.0,0.0111281]
[1765038705370,0.05482,89858.0,89857.0,0.05613]
[1765038706769,0.05582,89858.0,89857.0,0.05613]
[1765038707375,0.001,89858.0,89857.0,0.05613]
[1765038707793,0.001,89858.0,89857.0,0.46613]
[1765038714678,0.02822,89858.0,89857.0,0.05613]
[1765038714882,0.001,89858.0,89857.0,0.05613]
[1765038721893,0.001,89858.0,89857.0,0.47613]
[1765038723586,0.00016693,89866.0,89865.0,0.06812]
[1765038723791,0.4316956,89876.0,89875.0,0.05708]
[1765038725494,0.4316956,89876.0,89875.0,0.07018128]
[1765038725892,0.4346956,89876.0,89875.0,0.07018128]
[1765038726395,0.4326956,89876.0,89875.0,0.07018128]
[1765038726696,0.4356956,89876.0,89875.0,0.07018128]
[1765038728286,0.0748956,89876.0,89875.0,0.07018128]
[1765038728494,0.0718956,89876.0,89875.0,0.07018128]
[1765038728701,0.0738956,89876.0,89875.0,0.07018128]
[1765038728899,0.06277,89876.0,89875.0,0.07018128]
[1765038729100,0.001,89876.0,89875.0,0.43098128]
[1765038729293,0.003,89876.0,89875.0,0.43098128]
[1765038729494,0.05993693,89884.0,89883.0,0.05708]
[1765038729699,0.05993693,89884.0,89883.0,0.4290046]
[1765038731808,0.03097693,89884.0,89883.0,0.4290046]
[1765038732105,0.03197693,89884.0,89883.0,0.4290046]
[1765038732497,0.03097693,89884.0,89883.0,0.4290046]
[1765038733103,0.06093693,89884.0,89883.0,0.4290046]
[1765038736504,0.00116693,89884.0,89883.0,0.4290046]
[1765038736700,0.00116693,89884.0,89883.0,0.8090046]
[1765038738001,0.0111233,89894.0,89891.0,0.0111235]
[1765038738208,0.0708933,89894.0,89893.0,0.05708]
[1765038739104,0.05977,89894.0,89893.0,0.05708]
[1765038739301,0.07105923,89902.0,89901.0,0.05708]
[1765038741199,0.07305923,89902.0,89901.0,0.05708]
[1765038741400,0.07405923,89902.0,89901.0,0.05708]
[1765038741703,0.06093693,89902.0,89901.0,0.05708]
[1765038741905,0.06193693,89902.0,89901.0,0.05708]
[1765038742302,0.03197693,89902.0,89901.0,0.05708]
[1765038742606,0.06193693,89902.0,89901.0,0.05708]
[1765038742806,0.05993693,89902.0,89901.0,0.05708]
[1765038743007,0.06193693,89902.0,89901.0,0.05708]
[1765038743202,0.00216693,89902.0,89901.0,0.44708]
[1765038744401,0.00116693,89902.0,89901.0,0.44708]
[1765038744606,0.00099999,89910.0,89909.0,0.05708]
[1765038744805,0.05977,89918.0,89917.0,0.0682004]
[1765038745006,0.0708903,89918.0,89917.0,0.05708]
[1765038746103,0.0718903,89918.0,89917.0,0.05708]
[1765038746509,0.0718903,89918.0,89917.0,0.0297]
[1765038746904,0.0718903,89918.0,89917.0,0.05708]
[1765038765523,0.0718903,89918.0,89917.0,0.0297]
[1765038765730,0.0842213,89910.0,89909.0,0.05471683]
[1765038766222,0.0842213,89910.0,89909.0,0.00016683]
[1765038766828,0.05633,89891.0,89890.0,0.18571227]
[1765038767030,0.05633,89891.0,89890.0,0.05455]
[1765038769331,0.05633,89891.0,89890.0,0.05555]
[1765038769523,0.05633,89891.0,89890.0,0.05655]
[1765038769831,0.05633,89897.0,89896.0,0.05455]
[1765038772239,0.05633,89897.0,89896.0,0.07109]
[1765038774238,0.05633,89897.0,89896.0,0.07209]
[1765038775746,0.05633,89897.0,89896.0,0.43289]
[1765038775946,0.02941683,89899.0,89898.0,0.06469]
[1765038776136,0.00016683,89899.0,89898.0,0.06469]
[1765038778851,0.00116683,89899.0,89898.0,0.06869]
[1765038779452,0.00116683,89899.0,89898.0,0.06969]
[1765038781047,0.41762,89912.0,89911.0,0.05542]
[1765038781640,0.39011,89912.0,89911.0,0.05542]
[1765038782048,0.39011,89912.0,89911.0,0.0665412]
[1765038782252,0.05782,89912.0,89911.0,0.0665412]
[1765038783449,0.07509,89912.0,89911.0,0.05542]
[1765038783655,0.07509,89912.0,89907.0,0.0384516]
[1765038783656,0.07409,89908.0,89907.0,0.0384516]
[1765038783847,0.07409,89908.0,89907.0,0.0665416]
[1765038784255,0.07409,89908.0,89907.0,0.05542]
[1765038786254,0.07509,89908.0,89907.0,0.05542]
[1765038787258,0.07409,89908.0,89907.0,0.05542]
[1765038787448,0.07509,89908.0,89907.0,0.05542]
[1765038787857,0.07409,89908.0,89907.0,0.05542]
[1765038788156,0.07509,89908.0,89907.0,0.05542]
[1765038789356,0.085212,89904.0,89903.0,0.00016683]
[1765038790649,0.085212,89904.0,89903.0,0.00116683]
[1765038791660,0.086212,89904.0,89903.0,0.00116683]
[1765038792360,0.085212,89904.0,89903.0,0.00116683]
[1765038792561,0.088212,89904.0,89903.0,0.00016683]
[1765038793156,0.086212,89904.0,89903.0,0.00016683]
[1765038793358,0.0679439,89889.0,89888.0,0.02733]
[1765038793561,0.0679451,89879.0,89878.0,0.05542]
[1765038794059,0.0679451,89879.0,89877.0,0.3608]
[1765038794060,0.05682,89878.0,89877.0,0.3608]
[1765038794263,0.05682,89878.0,89877.0,0.41622]
[1765038795357,0.05682,89878.0,89877.0,0.41722]
[1765038796465,0.05782,89878.0,89877.0,0.42222]
[1765038796764,0.05782,89878.0,89877.0,0.42122]
[1765038796973,0.05682,89878.0,89877.0,0.41622]
[1765038803670,0.05682,89878.0,89877.0,0.05542]
[1765038803971,0.07409,89876.0,89875.0,0.04006324]
[1765038804171,0.07409,89876.0,89875.0,0.02733]
[1765038804374,0.07409,89876.0,89875.0,0.069788]
[1765038805572,0.07409,89876.0,89875.0,0.070788]
[1765038806965,0.07409,89876.0,89875.0,0.015368]
[1765038807470,0.05682,89876.0,89875.0,0.070788]
[1765038807669,0.02931,89876.0,89875.0,0.070788]
[1765038807871,0.067945,89881.0,89880.0,0.07223]
[1765038808060,0.040435,89881.0,89880.0,0.07223]
[1765038808560,0.067945,89881.0,89880.0,0.07223]
[1765038809167,0.068945,89881.0,89880.0,0.07223]
[1765038809978,0.068945,89881.0,89880.0,0.05542]
[1765038811580,0.067945,89881.0,89880.0,0.05542]
[1765038811768,0.068945,89881.0,89880.0,0.05542]
[1765038812278,0.067945,89881.0,89880.0,0.05542]
[1765038813372,0.067945,89881.0,89880.0,0.05642]
[1765038815077,0.067945,89881.0,89880.0,0.001]
[1765038815774,0.428745,89881.0,89880.0,0.001]
[1765038816478,0.0855755,89876.0,89875.0,0.071138]
[1765038818781,0.0855755,89876.0,89875.0,0.072138]
[1765038836294,0.0855755,89876.0,89875.0,0.015368]
[1765038836586,0.0855755,89876.0,89875.0,0.044978]
[1765038836983,0.0855755,89876.0,89875.0,0.074308]
[1765038837685,0.0387155,89876.0,89875.0,0.074308]
[1765038837883,0.0676155,89876.0,89875.0,0.074308]
[1765038841788,0.0111248,89882.0,89875.0,0.074308]
[1765038841994,0.05593,89882.0,89881.0,0.05818]
[1765038842494,0.02878,89882.0,89881.0,0.05818]
[1765038843091,0.05693,89882.0,89881.0,0.05818]
[1765038843285,0.05793,89882.0,89881.0,0.05818]
[1765038843686,0.05693,89882.0,89881.0,0.05818]
[1765038843992,0.05793,89882.0,89881.0,0.05818]
[1765038845993,0.002,89882.0,89881.0,0.05818]
[1765038846792,0.00016683,89886.0,89885.0,0.0693044]
[1765038848093,0.00216683,89886.0,89885.0,0.0693044]
[1765038849095,0.00316683,89886.0,89885.0,0.0693044]
[1765038852296,0.00316683,89886.0,89885.0,0.2193044]
[1765038852490,0.00316683,89886.0,89885.0,0.4493044]
[1765038853994,0.00316683,89886.0,89885.0,0.2093044]
[1765038854194,0.05909683,89886.0,89885.0,0.2093044]
[1765038854399,0.03194683,89886.0,89885.0,0.2093044]
[1765038854793,0.00316683,89886.0,89885.0,0.2093044]
[1765038854988,0.00316683,89886.0,89885.0,0.4993044]
[1765038857300,0.00316683,89886.0,89885.0,0.0693044]
[1765038857503,0.00316683,89886.0,89885.0,0.1993044]
[1765038857799,0.03194683,89886.0,89885.0,0.1993044]
[1765038859496,0.00316683,89886.0,89885.0,0.1993044]
[1765038861299,0.00316683,89886.0,89885.0,0.0693044]
[1765038861804,0.03194683,89886.0,89885.0,0.0693044]
[1765038863906,0.00316683,89886.0,89885.0,0.0693044]
[1765038864905,0.03194683,89886.0,89885.0,0.0693044]
[1765038865710,0.05909683,89886.0,89885.0,0.0693044]
[1765038873014,0.07022103,89886.0,89885.0,0.0693044]
[1765038878414,0.05909683,89886.0,89885.0,0.0693044]
[1765038878614,0.00316683,89886.0,89885.0,0.0693044]
[1765038880617,0.05925683,89886.0,89885.0,0.0693044]
[1765038881508,0.00316683,89886.0,89885.0,0.0693044]
[1765038883717,0.00316683,89886.0,89885.0,0.4301044]
[1765038888413,0.06174683,89886.0,89885.0,0.4301044]
[1765038894025,0.06174683,89886.0,89885.0,0.9459044]
[1765038895724,0.07287103,89886.0,89885.0,0.9459044]
[1765038896122,0.06174683,89886.0,89885.0,0.9459044]
[1765038900330,0.07854683,89886.0,89885.0,0.8766]
[1765038900518,0.07854683,89886.0,89885.0,0.5158]
[1765038900718,0.0773355,89876.0,89875.0,0.072308]
[1765038901230,0.082326,89872.0,89871.0,0.02969]
[1765038901528,0.082326,89872.0,89871.0,0.05794]
[1765038902424,0.082326,89872.0,89871.0,0.0708251]
[1765038903130,0.082326,89872.0,89871.0,0.0718251]
[1765038903333,0.083326,89872.0,89871.0,0.0758251]
[1765038904532,0.0722,89872.0,89871.0,0.0758251]
[1765038904735,0.0554,89872.0,89871.0,0.0758251]
[1765038906433,0.001,89872.0,89871.0,0.0758251]
[1765038906835,0.02821,89872.0,89871.0,0.0758251]
[1765038907037,0.0554,89872.0,89871.0,0.0758251]
[1765038909932,0.0722,89872.0,89871.0,0.005]
[1765038910326,0.433,89872.0,89871.0,0.005]
[1765038922047,0.4162,89872.0,89871.0,0.06294]
[1765038923042,0.433,89872.0,89871.0,0.06294]
[1765038929061,0.433,89872.0,89871.0,0.005]
[1765038930364,0.433,89872.0,89871.0,0.03469]
[1765038930663,0.433,89872.0,89871.0,0.06244]
[1765038931854,0.0722,89872.0,89871.0,0.06244]
[1765038932061,0.0722,89872.0,89871.0,0.005]
[1765038943573,0.0564,89870.0,89869.0,0.00016683]
[1765038943779,0.0564,89853.0,89852.0,0.05588]
[1765038944077,0.0675283,89853.0,89852.0,0.05588]
[1765038944376,0.0675283,89853.0,89852.0,0.06901624]
[1765038944675,0.0675283,89853.0,89852.0,0.05588]
[1765038944976,0.0675293,89845.0,89844.0,0.00016693]
[1765038945476,0.0675293,89845.0,89844.0,0.05604693]
[1765038946574,0.0685293,89845.0,89844.0,0.06304693]
[1765038946966,0.0685293,89845.0,89844.0,0.07963693]
[1765038946967,0.0574,89845.0,89844.0,0.07963693]
[1765038948073,0.001,89845.0,89844.0,0.49963693]
[1765038948265,0.001,89845.0,89844.0,0.86043693]
[1765038948470,0.02848,89845.0,89844.0,0.49043693]
[1765038948674,0.001,89845.0,89844.0,0.49043693]
[1765038948978,0.001,89845.0,89844.0,0.87043693]
[1765038955071,0.05717,89845.0,89844.0,0.62043693]
[1765038955273,0.05717,89845.0,89844.0,0.42384693]
[1765038957181,0.001,89845.0,89844.0,0.81079693]
[1765038958982,0.001,89845.0,89844.0,0.54079693]
[1765038959173,0.02937,89845.0,89844.0,0.54079693]
[1765038960473,0.05717,89845.0,89844.0,0.54079693]
[1765038961177,0.05717,89845.0,89844.0,0.42384693]
[1765038961383,0.07414,89845.0,89844.0,0.42384693]
[1765038963778,0.07414,89845.0,89844.0,0.43497633]
[1765038963983,0.001,89845.0,89844.0,0.43497633]
[1765038965385,0.02884,89845.0,89844.0,0.43497633]
[1765038965884,0.05851,89845.0,89844.0,0.43497633]
[1765038966383,0.001,89845.0,89844.0,0.43497633]
[1765038967480,0.001,89845.0,89844.0,0.82497633]
[1765038974688,0.001,89845.0,89844.0,0.84173633]
[1765038982903,0.001,89845.0,89844.0,0.48093633]
[1765038983103,0.001,89845.0,89844.0,0.84173633]
[1765038984503,0.05851,89845.0,89844.0,0.60497633]
[1765038984899,0.05851,89845.0,89844.0,0.42384693]
[1765038985300,0.05851,89845.0,89844.0,0.93984693]
[1765038987399,0.02884,89845.0,89844.0,1.35822693]
[1765038987606,0.001,89845.0,89844.0,1.35822693]
[1765038990821,0.0689475,89860.0,89859.0,0.05735]
[1765038992112,0.0689475,89860.0,89859.0,0.05835]
[1765038992315,0.0699475,89860.0,89859.0,0.06035]
[1765038998729,0.0872475,89860.0,89859.0,0.06035]
[1765039004733,0.0862475,89860.0,89859.0,0.05835]
[1765039005028,0.0872475,89860.0,89859.0,0.05835]
[1765039005429,0.0872475,89860.0,89859.0,0.05735]
[1765039011625,0.0681085,89852.0,89851.0,0.5715]
[1765039011831,0.0681085,89852.0,89851.0,0.02815]
[1765039012029,0.0684893,89845.0,89844.0,0.05677693]
[1765039012329,0.0684893,89845.0,89844.0,0.84277693]
[1765039012927,0.00099999,89850.0,89849.0,0.05661]
[1765039013230,0.0403683,89853.0,89852.0,0.0739]
[1765039013825,0.0684883,89853.0,89852.0,0.0739]
[1765039014025,0.0684883,89853.0,89852.0,0.05661]
[1765039014427,0.03023999,89860.0,89859.0,0.05661]
[1765039014623,0.00016693,89861.0,89860.0,0.0761175]
[1765039014822,0.00016693,89861.0,89860.0,0.4561175]
[1765039016626,0.00116693,89861.0,89860.0,0.4561175]
[1765039017634,0.00016693,89861.0,89860.0,0.4561175]
[1765039017929,0.00116693,89861.0,89860.0,0.4581175]
[1765039018635,0.0684853,89878.0,89877.0,0.05661]
[1765039020035,0.0694853,89878.0,89877.0,0.05661]
[1765039021842,0.0694853,89878.0,89877.0,0.41741]
[1765039022336,0.05836,89878.0,89877.0,0.41741]
[1765039023041,0.05736,89878.0,89877.0,0.41741]
[1765039025740,0.02924,89878.0,89877.0,0.41741]
[1765039025945,0.0683546,89884.0,89883.0,0.05759]
[1765039027142,0.0693546,89884.0,89883.0,0.05759]
[1765039028042,0.0703546,89884.0,89883.0,0.05759]
[1765039029843,0.05923,89884.0,89883.0,0.05759]
[1765039030156,0.02986,89884.0,89883.0,0.05759]
[1765039030353,0.0275407,89915.0,89899.0,0.05759]
[1765039030354,0.05723,89900.0,89899.0,0.05759]
[1765039030541,0.05723,89900.0,89899.0,0.57347]
[1765039031549,0.05823,89900.0,89899.0,0.57347]
[1765039031739,0.05823,89900.0,89899.0,0.58569852]
[1765039032950,0.06223,89900.0,89899.0,0.58669852]
[1765039034951,0.07865,89900.0,89899.0,0.58669852]
[1765039036452,0.43945,89900.0,89899.0,0.58669852]
[1765039038955,0.43945,89900.0,89899.0,0.001]
[1765039046956,0.0683535,89892.0,89891.0,3e-08]
[1765039047156,0.0683558,89873.0,89872.0,0.05759]
[1765039048155,0.0683558,89873.0,89872.0,0.07008976]
[1765039048556,0.0693558,89873.0,89872.0,0.07308976]
[1765039049362,0.05823,89873.0,89872.0,0.07308976]
[1765039049566,0.001,89873.0,89872.0,0.48008976]
[1765039050959,0.00016693,89881.0,89880.0,0.077775]
[1765039052362,0.00116693,89881.0,89880.0,0.077775]
[1765039054668,0.00116693,89881.0,89880.0,0.447775]
[1765039054871,0.00116693,89881.0,89880.0,0.963655]
[1765039056965,0.0384827,89899.0,89898.0,0.02847]
[1765039057169,0.0111227,89899.0,89898.0,0.05787]
[1765039057567,0.0659527,89899.0,89898.0,0.05787]
[1765039057768,0.05483,89899.0,89898.0,0.05787]
[1765039058370,0.05883,89899.0,89898.0,0.05887]
[1765039058863,0.05983,89899.0,89898.0,0.05887]
[1765039059769,0.005,89899.0,89898.0,0.05887]
[1765039061973,0.005,89899.0,89898.0,0.57479]
[1765039062172,0.03236,89899.0,89898.0,0.57479]
[1765039062369,0.005,89899.0,89898.0,0.57479]
[1765039062770,0.00016693,89907.0,89906.0,0.0689918]
[1765039062971,0.05510801,89926.0,89925.0,0.05787]
[1765039063171,0.05510801,89926.0,89925.0,0.07521]
[1765039063371,0.05510801,89926.0,89925.0,0.05787]
[1765039063572,0.05510801,89926.0,89925.0,0.07059264]
[1765039063770,0.05510801,89926.0,89925.0,0.43139264]
[1765039064575,0.06210801,89926.0,89925.0,0.43239264]
[1765039065171,0.05510801,89926.0,89925.0,0.43139264]
[1765039065568,0.00027801,89926.0,89925.0,0.43139264]
[1765039065773,0.05510801,89926.0,89925.0,0.43139264]
[1765039066574,0.00027801,89926.0,89925.0,0.43139264]
[1765039066764,0.02763801,89926.0,89925.0,0.43139264]
[1765039067178,0.00027801,89926.0,89925.0,0.43139264]
[1765039067374,0.05510801,89926.0,89925.0,0.43339264]
[1765039067776,0.05510801,89926.0,89925.0,0.43139264]
[1765039067978,0.05510801,89926.0,89925.0,0.42067]
[1765039068871,0.05510801,89926.0,89925.0,0.05987]
[1765039069071,0.05510801,89926.0,89925.0,0.002]
[1765039069374,0.05483,89923.0,89922.0,0.57383]
[1765039069871,0.05483,89923.0,89922.0,0.05787]
[1765039070277,0.05483,89923.0,89922.0,0.48787]
[1765039071383,0.05583,89923.0,89922.0,0.48787]
[1765039072081,0.05483,89923.0,89922.0,0.48787]
[1765039072277,0.05583,89923.0,89922.0,0.48787]
[1765039074381,0.001,89923.0,89922.0,0.48787]
[1765039074576,0.05510801,89926.0,89925.0,0.06481]
[1765039074782,0.05510801,89926.0,89925.0,0.42561]
[1765039076785,0.05510801,89926.0,89925.0,0.42661]
[1765039077185,0.05510801,89926.0,89925.0,0.42561]
[1765039077384,0.05510801,89926.0,89925.0,0.42661]
[1765039078187,0.02763801,89926.0,89925.0,0.42661]
[1765039078382,0.02763801,89926.0,89925.0,0.42561]
[1765039078684,0.02763801,89926.0,89925.0,0.42661]
[1765039079788,0.02763801,89926.0,89925.0,0.42561]
[1765039080086,0.02763801,89926.0,89925.0,0.42661]
[1765039080788,0.05681801,89926.0,89925.0,0.42661]
[1765039081086,0.05681801,89926.0,89925.0,0.06581]
[1765039081287,0.03003801,89926.0,89925.0,0.42661]
[1765039081587,0.05798801,89926.0,89925.0,0.42661]
[1765039081976,0.00027801,89926.0,89925.0,0.42661]
[1765039082888,0.00027801,89926.0,89925.0,0.42561]
[1765039083081,0.00027801,89926.0,89925.0,0.42661]
[1765039083488,0.00027801,89926.0,89925.0,0.42561]
[1765039083688,0.00027801,89926.0,89925.0,0.42661]
[1765039083891,0.03003801,89926.0,89925.0,0.42661]
[1765039084191,0.05798801,89926.0,89925.0,0.42661]
[1765039084684,0.00027801,89926.0,89925.0,0.42661]
[1765039084879,0.00027801,89926.0,89925.0,0.06581]
[1765039085190,0.05798801,89926.0,89925.0,0.06581]
[1765039085492,0.05798801,89926.0,89925.0,0.0769294]
[1765039086384,0.05798801,89926.0,89925.0,0.06581]
[1765039086694,0.05798801,89926.0,89925.0,0.05887]
[1765039086896,0.05798801,89926.0,89925.0,0.001]
[1765039087384,0.05798801,89926.0,89925.0,0.02928]
[1765039087585,0.0111194,89925.0,89924.0,0.51568]
[1765039087784,0.0864594,89925.0,89924.0,0.51568]
[1765039087984,0.0864594,89925.0,89924.0,0.54396]
[1765039088396,0.0688303,89918.0,89901.0,0.3608]
[1765039088595,0.4296303,89918.0,89910.0,0.01207629]
[1765039089994,0.4316303,89918.0,89906.0,0.42701305]
[1765039090200,0.4316303,89918.0,89906.0,0.41468]
[1765039090494,0.4306303,89918.0,89906.0,0.41468]
[1765039090697,0.4316303,89918.0,89906.0,0.41468]
[1765039090998,0.4316303,89918.0,89917.0,0.05698683]
[1765039092391,0.4306303,89918.0,89917.0,0.05698683]
[1765039092592,0.4316303,89918.0,89917.0,0.05698683]
[1765039094501,0.4316303,89918.0,89917.0,0.00016683]
[1765039094889,0.05771,89902.0,89889.0,0.3608]
[1765039095094,0.05771,89902.0,89901.0,0.05682]
[1765039096190,0.05771,89902.0,89901.0,0.05882]
[1765039098296,0.05771,89902.0,89901.0,0.05782]
[1765039101404,0.05771,89902.0,89901.0,0.05682]
[1765039101606,0.05771,89902.0,89901.0,0.05782]
[1765039104405,0.05771,89902.0,89901.0,0.05682]
[1765039104607,0.05771,89902.0,89901.0,0.05782]
[1765039105510,0.05771,89902.0,89901.0,0.05682]
[1765039105701,0.05771,89902.0,89901.0,0.05782]
[1765039106303,0.05771,89902.0,89901.0,0.001]
[1765039107409,0.05771,89902.0,89901.0,0.02828]
[1765039107707,0.05871,89902.0,89901.0,0.02828]
[1765039108003,0.05971,89902.0,89901.0,0.02828]
[1765039108309,0.05771,89896.0,89895.0,0.06878726]
[1765039110009,0.068833,89896.0,89895.0,0.06878726]
[1765039111111,0.069833,89896.0,89895.0,0.06878726]
[1765039111706,0.068833,89896.0,89895.0,0.06878726]
[1765039111912,0.069833,89896.0,89895.0,0.06878726]
[1765039114211,0.068833,89896.0,89895.0,0.06878726]
[1765039114412,0.069833,89896.0,89895.0,0.06878726]
[1765039115015,0.087063,89896.0,89895.0,0.06878726]
[1765039116713,0.086063,89896.0,89895.0,0.06878726]
[1765039116916,0.069833,89896.0,89895.0,0.06878726]
[1765039117513,0.068833,89896.0,89895.0,0.06878726]
[1765039117714,0.069833,89896.0,89895.0,0.06878726]
[1765039118415,0.068833,89896.0,89895.0,0.06878726]
[1765039118816,0.068833,89896.0,89895.0,0.06978726]
[1765039122120,0.086063,89896.0,89895.0,0.06978726]
[1765039123119,0.086063,89896.0,89895.0,0.05782]
[1765039123823,0.087063,89896.0,89895.0,0.05682]
[1765039125420,0.069833,89896.0,89895.0,0.05682]
[1765039126622,0.087323,89896.0,89895.0,0.05682]
[1765039126824,0.448123,89896.0,89895.0,0.05682]
[1765039127423,0.447123,89896.0,89895.0,0.05682]
[1765039128425,0.448123,89896.0,89895.0,0.05682]
[1765039128621,0.448123,89896.0,89895.0,0.02828]
[1765039128921,0.05917,89894.0,89893.0,0.00016683]
[1765039130424,0.06017,89894.0,89893.0,0.00016683]
[1765039130925,0.05917,89894.0,89893.0,0.00016683]
[1765039131118,0.06017,89894.0,89893.0,0.00016683]